bitfinex/quotes_SOLUSD_20250621
["timestamp","ask_amount","ask_price","bid_price","bid_amount"]
[1750543843135,18.54899564,134.66,134.62,18.54899564]
[1750543843331,19.26899564,134.66,134.62,18.54899564]
[1750543843563,19.26899564,134.66,134.61,37.1199488]
[1750543844027,0.72,134.66,134.61,37.1199488]
[1750543844225,0.72,134.66,134.61,44.54881738]
[1750543844226,19.26899564,134.66,134.61,44.54881738]
[1750543844455,18.54899564,134.65,134.61,7.42886858]
[1750543844639,19.26899564,134.65,134.61,25.97786422]
[1750543844948,0.72,134.65,134.61,25.97786422]
[1750543845359,19.26899564,134.65,134.61,7.42886858]
[1750543845528,19.26899564,134.65,134.56,43.81464506]
[1750543845529,0.72,134.62,134.58,7.43052459]
[1750543845850,0.72,134.61,134.58,7.43052459]
[1750543846155,19.26899564,134.61,134.58,7.43052459]
[1750543846359,0.72,134.61,134.58,7.43052459]
[1750543846537,2.2298,134.62,134.58,25.97952023]
[1750543846732,18.54899564,134.63,134.59,18.54899564]
[1750543846927,19.26899564,134.63,134.58,26.00683607]
[1750543847250,18.54899564,134.59,134.57,16.95102145]
[1750543847564,18.54899564,134.59,134.57,9.52]
[1750543847870,18.54899564,134.58,134.57,9.52]
[1750543848232,0.72,134.64,134.57,80.07752414]
[1750543848456,18.54899564,134.63,134.58,18.54899564]
[1750543848969,18.54899564,134.62,134.58,18.54899564]
[1750543849331,18.54899564,134.62,134.57,80.07752414]
[1750543849890,18.54899564,134.61,134.57,80.07752414]
[1750543850186,19.26899564,134.6,134.57,16.9508366]
[1750543850354,0.72,134.6,134.57,16.9508366]
[1750543850554,19.26899564,134.6,134.57,16.9508366]
[1750543850955,0.72,134.64,134.57,16.9508366]
[1750543851267,19.26899564,134.61,134.57,35.5285285]
[1750543852982,18.54899564,134.6,134.57,16.9508366]
[1750543853279,0.72,134.59,134.57,16.9508366]
[1750543853592,19.26899564,134.58,134.56,7.43143148]
[1750543853958,0.72,134.57,134.53,28.06899564]
[1750543854169,18.54899564,134.55,134.51,28.06899564]
[1750543854373,0.72,134.53,134.51,9.52]
[1750543854561,0.72,134.53,134.51,16.95423323]
[1750543854763,6.98749879,134.58,134.52,18.54899564]
[1750543855081,0.72,134.6,134.54,26.0]
[1750543855380,18.54899564,134.59,134.54,26.0]
[1750543855589,19.26899564,134.58,134.53,18.54899564]
[1750543855770,18.54899564,134.58,134.53,18.54899564]
[1750543856082,0.72,134.58,134.53,18.54899564]
[1750543856295,19.26899564,134.58,134.53,18.54899564]
[1750543856478,19.26899564,134.58,134.54,18.54899564]
[1750543856673,19.26899564,134.58,134.55,7.43218134]
[1750543856880,0.72,134.56,134.52,25.98283447]
[1750543857285,0.72,134.56,134.53,18.54899564]
[1750543858300,18.54899564,134.57,134.52,44.56743155]
[1750543858499,19.26899564,134.57,134.52,44.56743155]
[1750543858885,19.26899564,134.57,134.53,18.54899564]
[1750543859279,18.54899564,134.56,134.52,26.01843591]
[1750543859603,18.54899564,134.56,134.52,25.98283447]
[1750543859782,19.26899564,134.56,134.52,25.98283447]
[1750543860103,0.72,134.55,134.52,25.98283447]
[1750543860303,0.72,134.56,134.52,25.98283447]
[1750543860479,19.26899564,134.56,134.52,25.98283447]
[1750543860890,6.52896813,134.6,134.46,7.43715603]
[1750543860891,18.54899564,134.53,134.46,7.43715603]
[1750543861089,19.26899564,134.52,134.48,18.54899564]
[1750543861288,19.26899564,134.52,134.47,28.00899564]
[1750543861491,19.26899564,134.52,134.47,54.00899564]
[1750543861719,19.26899564,134.52,134.48,18.54899564]
[1750543862018,1.5823,134.55,134.51,44.54899564]
[1750543862778,1.5823,134.55,134.52,7.43383883]
[1750543863225,2.3023,134.55,134.52,7.43383883]
[1750543863527,18.54899564,134.53,134.52,7.43383883]
[1750543863694,0.72,134.53,134.52,7.43383883]
[1750543863899,20.85129564,134.55,134.52,7.43383883]
[1750543864288,18.54899564,134.54,134.52,7.43383883]
[1750543864613,0.72,134.54,134.52,7.43383883]
[1750543864815,0.72,134.54,134.5,37.13553085]
[1750543864983,19.26899564,134.54,134.5,37.13553085]
[1750543865804,19.26899564,134.54,134.5,18.58653521]
[1750543866107,19.26899564,134.54,134.5,37.13553085]
[1750543866689,19.26899564,134.52,134.49,7.43549706]
[1750543867613,18.54899564,134.54,134.49,44.57323535]
[1750543867811,0.72,134.53,134.49,44.57323535]
[1750543868225,1.5823,134.55,134.49,26.02423971]
[1750543868428,0.72,134.52,134.49,26.02423971]
[1750543868724,19.26899564,134.52,134.49,26.02423971]
[1750543868906,19.26899564,134.51,134.49,7.43549706]
[1750543869085,0.72,134.51,134.49,7.43549706]
[1750543869423,18.54899564,134.5,134.46,7.43715603]
[1750543869589,19.26899564,134.47,134.46,7.43715603]
[1750543870324,0.72,134.51,134.46,44.57904174]
[1750543870520,1.6154,134.52,134.46,44.57904174]
[1750543870521,1.6154,134.52,134.48,18.54899564]
[1750543870703,19.26899564,134.5,134.46,44.57904174]
[1750543871215,19.26899564,134.49,134.46,26.0300461]
[1750543871517,19.22899564,134.48,134.46,7.43715603]
[1750543871713,0.68,134.48,134.46,7.43715603]
[1750543872009,19.22899564,134.5,134.46,25.98615167]
[1750543872213,19.22899564,134.5,134.46,44.57904174]
[1750543872713,19.22899564,134.5,134.46,26.0300461]
[1750543872901,19.22899564,134.5,134.46,44.57904174]
[1750543873102,0.68,134.5,134.46,44.57904174]
[1750543873816,1.6154,134.52,134.49,18.54899564]
[1750543874114,1.6154,134.52,134.5,18.54899564]
[1750543874415,0.68,134.5,134.46,52.0300461]
[1750543874615,18.54899564,134.49,134.46,26.0300461]
[1750543874804,19.22899564,134.47,134.46,7.43715603]
[1750543875002,19.22899564,134.47,134.44,7.43826242]
[1750543875311,19.22899564,134.46,134.44,7.43826242]
[1750543876393,0.68,134.46,134.44,7.43826242]
[1750543876596,19.22899564,134.46,134.44,7.43826242]
[1750543876912,19.22899564,134.46,134.42,37.14732536]
[1750543876913,0.68,134.46,134.43,7.43881574]
[1750543877116,19.22899564,134.46,134.43,7.43881574]
[1750543877504,7.4355292,134.49,134.43,7.43881574]
[1750543877505,19.22899564,134.45,134.43,7.43881574]
[1750543877705,0.68,134.45,134.43,7.43881574]
[1750543878221,19.22899564,134.45,134.43,7.43881574]
[1750543878717,0.68,134.45,134.42,25.98836478]
[1750543879017,0.68,134.49,134.42,26.03779199]
[1750543879190,19.22899564,134.43,134.42,7.43936914]
[1750543879393,19.22899564,134.43,134.4,16.92027181]
[1750543879394,0.68,134.43,134.4,16.92027181]
[1750543879916,19.22899564,134.43,134.4,16.92027181]
[1750543880222,1.6054,134.48,134.42,44.54899564]
[1750543880393,6.3333,134.51,134.47,18.54899564]
[1750543880595,6.3333,134.51,134.48,18.54899564]
[1750543880795,7.0133,134.51,134.48,7.43604997]
[1750543881135,7.0133,134.51,134.48,25.98504561]
[1750543881705,6.3333,134.51,134.48,7.43604997]
[1750543881925,25.56229564,134.51,134.48,7.43604997]
[1750543882094,0.68,134.5,134.48,7.43604997]
[1750543884706,2.2854,134.52,134.5,7.43494423]
[1750543885206,2.2854,134.52,134.5,25.98393987]
[1750543885712,1.6054,134.52,134.5,25.98393987]
[1750543885900,6.3333,134.54,134.5,44.57130046]
[1750543886105,7.0133,134.54,134.5,44.57130046]
[1750543887421,2.2854,134.56,134.53,18.54899564]
[1750543888336,0.68,134.53,134.5,26.02230482]
[1750543888541,0.68,134.53,134.5,7.43494423]
[1750543889040,0.68,134.51,134.5,7.43494423]
[1750543889416,18.54899564,134.51,134.49,7.43549706]
[1750543889619,0.68,134.5,134.49,7.43549706]
[1750543890015,19.22899564,134.5,134.49,7.43549706]
[1750543890319,0.68,134.5,134.49,7.43549706]
[1750543891521,0.68,134.5,134.48,7.43604997]
[1750543891719,20.74729564,134.49,134.48,7.43604997]
[1750543892122,20.74729564,134.49,134.48,6.93604997]
[1750543892760,20.74729564,134.49,134.45,7.43770918]
[1750543892761,0.68,134.48,134.45,7.43770918]
[1750543893050,19.22899564,134.47,134.45,7.43770918]
[1750543893532,18.54899564,134.46,134.43,26.03455007]
[1750543893740,19.22899564,134.46,134.43,26.03455007]
[1750543894238,18.54899564,134.47,134.43,44.58354571]
[1750543894429,7.63321052,134.49,134.45,18.54899564]
[1750543894430,2.1983,134.49,134.45,18.54899564]
[1750543894626,19.22899564,134.48,134.44,18.54899564]
[1750543895041,19.22899564,134.48,134.43,26.03455007]
[1750543895042,1.5183,134.49,134.45,18.54899564]
[1750543895227,20.74729564,134.49,134.44,18.54899564]
[1750543895426,18.54899564,134.48,134.43,26.03455007]
[1750543895628,19.22899564,134.47,134.43,26.03455007]
[1750543895827,19.22899564,134.44,134.43,7.43881574]
[1750543896052,18.54899564,134.44,134.41,7.43992262]
[1750543896240,0.68,134.45,134.41,26.03972918]
[1750543896436,19.22899564,134.45,134.41,44.58872482]
[1750543896637,18.54899564,134.46,134.41,44.58872482]
[1750543896951,18.54899564,134.45,134.41,44.58872482]
[1750543897253,19.22899564,134.43,134.41,7.43992262]
[1750543897441,18.54899564,134.43,134.41,7.43992262]
[1750543897753,0.68,134.42,134.39,7.44102983]
[1750543897938,19.22899564,134.42,134.39,7.44102983]
[1750543898747,18.54899564,134.4,134.38,17.18143061]
[1750543898950,18.54899564,134.4,134.38,7.44143061]
[1750543899139,18.54899564,134.4,134.36,26.0]
[1750543899140,18.54899564,134.39,134.36,7.44269127]
[1750543899345,18.54899564,134.37,134.33,7.44435345]
[1750543899633,18.54899564,134.36,134.33,7.44435345]
[1750543899943,0.68,134.37,134.33,7.44435345]
[1750543900147,7.01781052,134.41,134.36,18.54899564]
[1750543900148,1.5829,134.41,134.36,18.54899564]
[1750543900339,20.13189564,134.41,134.36,44.54899564]
[1750543900529,20.13189564,134.41,134.36,26.0]
[1750543900860,20.13189564,134.41,134.36,44.54899564]
[1750543901039,20.81189564,134.41,134.36,44.54899564]
[1750543901230,1.5829,134.41,134.37,18.54899564]
[1750543901435,1.5829,134.41,134.36,26.0]
[1750543901436,1.5829,134.41,134.38,18.54899564]
[1750543901767,25.03839564,134.43,134.39,7.44102983]
[1750543901970,19.22899564,134.44,134.39,25.99002547]
[1750543902434,19.27899564,134.42,134.39,7.44102983]
[1750543902638,18.54899564,134.41,134.39,7.44102983]
[1750543902839,19.27899564,134.41,134.39,7.44102983]
[1750543903054,18.54899564,134.4,134.37,7.44213738]
[1750543904056,18.54899564,134.39,134.37,7.44213738]
[1750543904357,18.54899564,134.39,134.36,7.44252545]
[1750543904358,19.27899564,134.39,134.36,7.44252545]
[1750543904533,0.73,134.39,134.36,7.44252545]
[1750543904734,19.27899564,134.39,134.36,7.44252545]
[1750543905047,18.54899564,134.38,134.36,7.44252545]
[1750543905549,12.87125358,134.43,134.36,7.44252545]
[1750543905852,19.27899564,134.4,134.36,7.44252545]
[1750543906059,18.54899564,134.39,134.36,7.44252545]
[1750543906446,0.73,134.4,134.36,25.99152109]
[1750543906651,0.73,134.44,134.37,18.54899564]
[1750543906940,18.54899564,134.43,134.39,18.54899564]
[1750543907151,19.27899564,134.43,134.39,18.54899564]
[1750543907361,18.54899564,134.42,134.38,18.54899564]
[1750543907737,18.54899564,134.41,134.37,18.54899564]
[1750543908079,18.54899564,134.39,134.34,26.0]
[1750543908236,18.54899564,134.38,134.34,44.54899564]
[1750543908436,18.54899564,134.38,134.34,7.44379931]
[1750543908660,18.54899564,134.38,134.34,25.99279495]
[1750543908861,19.27899564,134.39,134.34,51.99279495]
[1750543909341,18.54899564,134.38,134.34,51.99279495]
[1750543910750,19.27899564,134.39,134.34,33.44379931]
[1750543910959,19.27899564,134.39,134.34,51.99279495]
[1750543911174,19.27899564,134.39,134.34,70.60229323]
[1750543911663,18.54899564,134.38,134.34,70.60229323]
[1750543911865,0.73,134.39,134.34,70.60229323]
[1750543912056,18.54899564,134.38,134.34,70.60229323]
[1750543913577,0.73,134.39,134.34,70.60229323]
[1750543913785,18.54899564,134.38,134.34,70.60229323]
[1750543915773,19.27899564,134.42,134.34,89.27229416]
[1750543915951,19.27899564,134.4,134.35,18.54899564]
[1750543916770,19.27899564,134.4,134.36,18.54899564]
[1750543916948,18.54899564,134.4,134.36,18.54899564]
[1750543917143,0.73,134.43,134.34,52.05329759]
[1750543917351,18.54899564,134.41,134.34,52.05329759]
[1750543917576,18.54899564,134.41,134.37,7.44213738]
[1750543920555,1.6461,134.45,134.4,18.54899564]
[1750543920757,148.0,134.47,134.43,18.54899564]
[1750543920956,20.17289564,134.49,134.44,18.54899564]
[1750543921154,20.17289564,134.49,134.43,26.0]
[1750543921155,20.17289564,134.49,134.45,18.54899564]
[1750543921362,1.6239,134.49,134.45,18.54899564]
[1750543921572,18.54899564,134.52,134.48,18.54899564]
[1750543921947,1.6239,134.53,134.48,18.54899564]
[1750543922160,1.6239,134.53,134.51,18.54899564]
[1750543922489,19.27899564,134.56,134.53,7.43328625]
[1750543922656,1.6239,134.57,134.54,18.54899564]
[1750543922984,1.6239,134.57,134.53,7.43328625]
[1750543923161,18.54899564,134.55,134.53,7.43328625]
[1750543923366,1.6239,134.57,134.53,7.43328625]
[1750543923556,18.54899564,134.55,134.53,7.43328625]
[1750543923885,19.27899564,134.55,134.5,44.5863937]
[1750543924050,19.27899564,134.55,134.51,18.54899564]
[1750543924478,19.27899564,134.55,134.51,25.98338713]
[1750543924786,19.27899564,134.54,134.48,7.43604997]
[1750543924999,19.27899564,134.52,134.48,51.98504561]
[1750543925300,19.27899564,134.52,134.48,33.43604997]
[1750543925500,19.27899564,134.51,134.48,7.43604997]
[1750543926305,18.54899564,134.49,134.43,7.43881574]
[1750543926494,18.54899564,134.46,134.41,18.59868265]
[1750543926805,19.27899564,134.46,134.41,63.14767829]
[1750543926971,1.6239,134.48,134.42,18.54899564]
[1750543927172,18.54899564,134.47,134.42,18.54899564]
[1750543927406,18.54899564,134.47,134.43,18.54899564]
[1750543927573,18.54899564,134.47,134.41,18.59868265]
[1750543927773,1.6239,134.48,134.41,18.59868265]
[1750543927774,18.54899564,134.46,134.42,18.54899564]
[1750543928483,18.54899564,134.47,134.42,18.54899564]
[1750543928714,1.6239,134.48,134.44,18.54899564]
[1750543928901,20.17289564,134.48,134.44,18.54899564]
[1750543929564,1.6239,134.48,134.44,18.54899564]
[1750543930090,1.6239,134.48,134.45,18.54899564]
[1750543930288,18.54899564,134.52,134.47,18.54899564]
[1750543930603,37.3102,134.53,134.49,18.54899564]
[1750543930604,1.5602,134.53,134.49,18.54899564]
[1750543930803,1.5602,134.53,134.5,18.54899564]
[1750543931463,1.5602,134.53,134.48,26.02617489]
[1750543931661,1.5602,134.53,134.49,18.54899564]
[1750543932890,1.5602,134.53,134.5,7.43494423]
[1750543933394,18.54899564,134.52,134.49,7.43531937]
[1750543933779,18.54899564,134.51,134.49,7.43531937]
[1750543933978,18.54899564,134.51,134.46,35.40599753]
[1750543933979,18.54899564,134.5,134.46,35.40599753]
[1750543934999,0.71,134.5,134.46,16.85700189]
[1750543935297,19.25899564,134.5,134.46,35.40599753]
[1750543935501,1.5602,134.53,134.46,35.40599753]
[1750543935676,18.54899564,134.52,134.47,18.54899564]
[1750543935869,18.54899564,134.52,134.48,18.54899564]
[1750543936070,1.5602,134.53,134.48,18.54899564]
[1750543936291,20.10919564,134.53,134.48,18.54899564]
[1750543936495,20.10919564,134.53,134.46,35.44989196]
[1750543936496,18.54899564,134.52,134.46,35.44989196]
[1750543936806,18.54899564,134.51,134.46,35.44989196]
[1750543936982,19.25899564,134.5,134.46,16.85700189]
[1750543937173,19.25899564,134.5,134.46,42.85700189]
[1750543937174,18.54899564,134.49,134.46,42.85700189]
[1750543937590,18.54899564,134.49,134.46,16.85700189]
[1750543937791,18.54899564,134.47,134.42,18.54899564]
[1750543938270,18.54899564,134.47,134.43,18.54899564]
[1750543938509,18.54899564,134.46,134.42,18.54899564]
[1750543938797,19.25899564,134.46,134.41,25.98891826]
[1750543938997,19.25899564,134.46,134.41,51.98891826]
[1750543939366,19.25899564,134.46,134.41,7.43992262]
[1750543939367,19.25899564,134.45,134.41,7.43992262]
[1750543939804,1.58,134.46,134.4,16.86029078]
[1750543939805,18.54899564,134.43,134.4,16.86029078]
[1750543939977,0.71,134.44,134.4,16.86029078]
[1750543940179,18.54899564,134.44,134.4,35.40928642]
[1750543940384,18.54899564,134.44,134.4,16.86029078]
[1750543940582,0.71,134.4,134.29,24.819896]
[1750543940812,0.71,134.4,134.3,7.44601638]
[1750543940813,25.96353368,134.35,134.3,7.44601638]
[1750543940987,25.96353368,134.35,134.31,25.96353368]
[1750543941504,25.96353368,134.35,134.31,26.0]
[1750543941801,18.64964886,134.39,134.34,25.96353368]
[1750543942006,25.96353368,134.41,134.36,51.96353368]
[1750543942195,9.72958794,134.42,134.35,25.96353368]
[1750543942396,25.96353368,134.4,134.36,25.96353368]
[1750543942578,25.96353368,134.39,134.35,26.0]
[1750543942778,25.96353368,134.38,134.33,25.96353368]
[1750543943023,25.96353368,134.36,134.32,33.4079195]
[1750543943505,25.96353368,134.35,134.31,7.44533361]
[1750543943740,25.96353368,134.35,134.31,33.40886729]
[1750543944103,25.96353368,134.36,134.31,33.40886729]
[1750543944279,25.96353368,134.36,134.32,25.96353368]
[1750543944888,25.96353368,134.36,134.33,7.44435345]
[1750543945590,25.96353368,134.36,134.32,7.44485413]
[1750543946001,25.96353368,134.35,134.31,33.40887643]
[1750543946384,25.96353368,134.33,134.3,16.86588535]
[1750543947809,25.96353368,134.34,134.3,42.82941903]
[1750543948000,25.96353368,134.37,134.31,26.0]
[1750543948207,25.96353368,134.37,134.33,25.96353368]
[1750543948724,25.96353368,134.36,134.32,25.96353368]
[1750543949325,25.96353368,134.36,134.33,7.44435345]
[1750543950125,25.96353368,134.38,134.33,33.40788713]
[1750543950294,25.96353368,134.38,134.34,25.96353368]
[1750543951129,25.96353368,134.38,134.35,7.44324525]
[1750543952441,25.96353368,134.36,134.29,25.96353368]
[1750543952601,25.96353368,134.34,134.29,51.96353368]
[1750543952800,25.96353368,134.34,134.29,26.0]
[1750543953014,25.96353368,134.34,134.29,51.96353368]
[1750543953410,25.96353368,134.34,134.3,7.44601638]
[1750543953616,25.96353368,134.33,134.3,7.44601638]
[1750543954206,0.71,134.37,134.31,25.96353368]
[1750543954408,26.67353368,134.37,134.32,25.96353368]
[1750543954641,25.96353368,134.36,134.32,25.96353368]
[1750543954822,0.71,134.37,134.31,25.96353368]
[1750543954998,0.71,134.36,134.31,25.96353368]
[1750543955194,26.67353368,134.36,134.31,25.96353368]
[1750543955400,26.67353368,134.36,134.32,7.44490768]
[1750543955817,25.96353368,134.35,134.32,7.44490768]
[1750543956802,0.71,134.36,134.32,7.44490768]
[1750543957104,25.96353368,134.35,134.32,7.44490768]
[1750543957525,25.96353368,134.35,134.31,7.44527537]
[1750543957725,26.67353368,134.35,134.31,7.44527537]
[1750543958024,26.67353368,134.35,134.31,33.40880905]
[1750543958319,25.96353368,134.35,134.31,33.40880905]
[1750543958817,25.96353368,134.36,134.31,33.40880905]
[1750543959029,26.67353368,134.36,134.31,33.40880905]
[1750543959331,26.67353368,134.36,134.32,25.96353368]
[1750543960524,25.96353368,134.36,134.32,25.96353368]
[1750543960716,25.96353368,134.37,134.32,25.96353368]
[1750543960948,2.29,134.39,134.34,18.63408505]
[1750543961247,2.29,134.39,134.32,26.0]
[1750543961248,20.92408505,134.39,134.35,18.63408505]
[1750543961402,20.92408505,134.39,134.36,7.44269127]
[1750543962151,20.92408505,134.39,134.33,7.44435345]
[1750543962152,19.37408505,134.38,134.33,7.44435345]
[1750543962349,18.63408505,134.37,134.33,26.0784385]
[1750543962551,0.74,134.38,134.34,18.63408505]
[1750543963244,18.63408505,134.4,134.35,18.63408505]
[1750543963446,19.37408505,134.4,134.36,7.44269127]
[1750543963761,18.63408505,134.39,134.36,7.44269127]
[1750543965548,0.74,134.38,134.32,26.0]
[1750543965759,19.37408505,134.36,134.32,44.63408505]
[1750543966138,0.74,134.36,134.32,44.63408505]
[1750543966538,19.37408505,134.36,134.33,7.44424799]
[1750543969559,18.63408505,134.38,134.34,18.63408505]
[1750543969740,2.3129,134.42,134.37,18.63408505]
[1750543969953,2.3129,134.42,134.36,26.0]
[1750543970251,20.94698505,134.42,134.38,18.63408505]
[1750543970631,2.3129,134.42,134.38,18.63408505]
[1750543970868,2.3129,134.42,134.37,26.04748083]
[1750543971059,2.3129,134.42,134.39,18.63408505]
[1750543971429,1.5666,134.45,134.4,18.63408505]
[1750543971839,18.63408505,134.44,134.4,18.63408505]
[1750543972045,2.3066,134.45,134.37,26.04748083]
[1750543972046,20.94068505,134.45,134.41,18.63408505]
[1750543972243,20.94068505,134.45,134.42,7.43936914]
[1750543973175,2.3066,134.45,134.42,7.43936914]
[1750543973348,20.94068505,134.45,134.42,7.43936914]
[1750543973865,19.37408505,134.44,134.42,7.43936914]
[1750543974062,19.37408505,134.43,134.4,7.44032566]
[1750543976549,19.37408505,134.43,134.4,18.63408505]
[1750543976550,0.74,134.43,134.4,18.63408505]
[1750543976851,20.94068505,134.45,134.39,26.04316549]
[1750543977050,20.94068505,134.45,134.4,18.63408505]
[1750543977051,19.37408505,134.44,134.4,18.63408505]
[1750543978439,0.74,134.44,134.41,26.03972918]
[1750543978648,19.37408505,134.44,134.41,26.03972918]
[1750543980873,19.37408505,134.43,134.41,26.03972918]
[1750543981757,19.37408505,134.43,134.41,18.59980656]
[1750543982641,18.63408505,134.43,134.41,18.59980656]
[1750543982838,6.21076792,134.42,134.4,7.44047619]
[1750543983043,5.47076792,134.43,134.4,26.04166666]
[1750543983267,19.37408505,134.44,134.4,26.04166666]
[1750543983475,24.84485297,134.44,134.4,26.04166666]
[1750543983969,19.37408505,134.44,134.4,26.04166666]
[1750543984748,6.52896813,134.48,134.43,44.63408505]
[1750543984749,1.5154,134.48,134.43,44.63408505]
[1750543984953,6.22642299,134.5,134.47,18.63408505]
[1750543985155,18.63408505,134.48,134.44,18.63408505]
[1750543985359,19.37408505,134.48,134.44,18.63408505]
[1750543985558,5.48642299,134.49,134.46,18.63408505]
[1750543985746,5.48642299,134.51,134.47,44.66219539]
[1750543985969,35.64698254,134.52,134.47,44.66219539]
[1750543986162,11.5264745,134.52,134.48,18.63408505]
[1750543986481,12.05472299,134.54,134.5,18.63408505]
[1750543986661,6.5683,134.54,134.5,18.63408505]
[1750543986863,2.2554,134.55,134.51,18.63408505]
[1750543987063,24.12050804,134.57,134.49,26.0]
[1750543987278,8.8237,134.58,134.49,26.0]
[1750543987486,19.37408505,134.57,134.52,18.63408505]
[1750543988055,19.37408505,134.57,134.51,26.02037022]
[1750543988367,19.37408505,134.57,134.52,18.63408505]
[1750543989368,19.37408505,134.57,134.53,26.01650188]
[1750543989572,19.37408505,134.57,134.53,44.65058693]
[1750543989877,26.71778505,134.58,134.54,18.63408505]
[1750543990274,27.45778505,134.58,134.54,18.63408505]
[1750543990875,8.8237,134.58,134.54,18.63408505]
[1750543991082,27.45778505,134.58,134.54,18.63408505]
[1750543991258,27.45778505,134.58,134.55,26.0126347]
[1750543991457,1.5154,134.58,134.55,26.0126347]
[1750543991676,19.33408505,134.61,134.55,63.17354142]
[1750543991855,19.33408505,134.61,134.57,18.63408505]
[1750543992273,18.63408505,134.6,134.55,63.17354142]
[1750543992486,0.7,134.59,134.55,81.80762647]
[1750543993272,18.63408505,134.58,134.55,18.58045336]
[1750543993564,19.33408505,134.56,134.53,7.43328625]
[1750543993977,19.33408505,134.56,134.53,26.01650188]
[1750543994561,53.58964886,134.6,134.53,26.01650188]
[1750543994765,19.33408505,134.6,134.55,18.63408505]
[1750543994967,0.7,134.6,134.56,18.63408505]
[1750543995369,19.33408505,134.6,134.57,26.00876866]
[1750543995564,26.75148505,134.62,134.57,44.64285371]
[1750543996163,1.5637,134.62,134.59,18.63408505]
[1750543996369,8.1174,134.65,134.6,18.63408505]
[1750543996572,20.19778505,134.65,134.61,18.63408505]
[1750543997105,1.5637,134.65,134.59,26.0]
[1750543997267,1.5637,134.65,134.61,18.63408505]
[1750543997465,1.5637,134.65,134.62,25.99910859]
[1750543998260,19.33408505,134.64,134.62,7.42831674]
[1750543998462,18.63408505,134.63,134.62,7.42831674]
[1750543998663,19.33408505,134.63,134.62,7.42831674]
[1750543999369,18.63408505,134.63,134.62,7.42831674]
[1750543999799,18.63408505,134.63,134.6,7.4294205]
[1750544000173,19.33408505,134.62,134.6,7.4294205]
[1750544000397,18.63408505,134.61,134.6,7.4294205]
[1750544001803,18.63408505,134.61,134.57,54.03408505]
[1750544001804,19.33408505,134.62,134.58,7.43052459]
[1750544002095,1.5637,134.65,134.58,44.64092112]
[1750544002295,18.63408505,134.63,134.59,18.63408505]
[1750544003599,20.21334886,134.65,134.6,7.4294205]
[1750544003826,18.63408505,134.63,134.6,26.00297176]
[1750544004380,18.63408505,134.64,134.6,26.00297176]
[1750544004593,19.33408505,134.64,134.6,26.06350555]
[1750544006015,19.33408505,134.64,134.6,7.4294205]
[1750544006780,18.63408505,134.63,134.6,7.4294205]
[1750544006980,19.33408505,134.61,134.57,26.0]
[1750544007182,7.42734407,134.64,134.55,7.43218134]
[1750544007183,19.33408505,134.59,134.55,7.43218134]
[1750544007386,0.7,134.59,134.55,7.43218134]
[1750544007602,19.33408505,134.59,134.55,7.43218134]
[1750544009810,19.33408505,134.59,134.55,26.06626639]
[1750544010109,19.33408505,134.58,134.54,7.43254973]
[1750544011004,19.33408505,134.57,134.53,7.4330894]
[1750544011708,18.63408505,134.56,134.53,7.4330894]
[1750544011911,19.33408505,134.56,134.53,7.4330894]
[1750544012999,19.33408505,134.56,134.52,35.40776123]
[1750544013197,18.63408505,134.54,134.52,9.34]
[1750544013411,19.33408505,134.54,134.52,9.34]
[1750544013907,0.7,134.53,134.52,9.34]
[1750544014092,0.7,134.53,134.52,16.77383883]
[1750544014287,18.63408505,134.54,134.52,16.77383883]
[1750544014799,18.63408505,134.55,134.52,16.77383883]
[1750544015395,19.33408505,134.55,134.52,16.77383883]
[1750544016794,18.63408505,134.54,134.52,16.77383883]
[1750544017914,18.63408505,134.54,134.52,9.34]
[1750544018209,19.33408505,134.54,134.52,9.34]
[1750544018615,0.7,134.53,134.52,9.34]
[1750544018794,0.7,134.52,134.48,26.07013502]
[1750544018994,19.33408505,134.52,134.48,26.07013502]
[1750544020410,18.63408505,134.53,134.48,26.07013502]
[1750544020796,19.33408505,134.53,134.48,26.07013502]
[1750544021810,19.33408505,134.53,134.49,18.63408505]
[1750544022510,30.19474347,134.55,134.49,18.63408505]
[1750544022511,5.42709461,134.55,134.51,18.63408505]
[1750544022826,0.68,134.54,134.51,18.63408505]
[1750544023490,0.68,134.54,134.5,26.06902928]
[1750544023991,0.68,134.53,134.5,26.06902928]
[1750544024202,0.68,134.53,134.5,7.43494423]
[1750544024503,19.31408505,134.53,134.5,7.43494423]
[1750544027828,18.64964886,134.57,134.49,7.43536281]
[1750544027829,19.31408505,134.51,134.49,7.43536281]
[1750544027997,20.90178505,134.51,134.49,7.43536281]
[1750544028199,19.31408505,134.5,134.47,7.43660295]
[1750544028402,18.63408505,134.5,134.47,7.43660295]
[1750544028601,19.31408505,134.48,134.46,9.34]
[1750544028827,19.31408505,134.48,134.41,0.5]
[1750544028828,0.68,134.46,134.38,57.5973253]